bitfinex/quotes_BTCUSD_20241022
["timestamp","ask_amount","ask_price","bid_price","bid_amount"]
[1729587761305,0.00260026,67035.0,67034.0,0.38373081]
[1729587761536,0.15177526,67035.0,67034.0,0.22977166]
[1729587761787,0.15077526,67035.0,67034.0,0.22877166]
[1729587762031,0.15377526,67035.0,67034.0,0.22877166]
[1729587762279,0.00560026,67035.0,67034.0,0.22977166]
[1729587762518,0.15177526,67035.0,67034.0,0.22977166]
[1729587762741,0.00160026,67035.0,67034.0,0.22877166]
[1729587762962,0.00160026,67035.0,67034.0,0.22977166]
[1729587763865,0.00360026,67035.0,67034.0,0.22977166]
[1729587764147,0.00360026,67035.0,67034.0,0.61576419]
[1729587764407,0.00360026,67035.0,67034.0,0.61178108]
[1729587764683,0.00360026,67035.0,67034.0,0.61278108]
[1729587765159,0.00160026,67035.0,67034.0,0.61278108]
[1729587765391,0.00360026,67035.0,67034.0,0.61278108]
[1729587767270,0.00360026,67035.0,67034.0,0.62278108]
[1729587767725,0.00360026,67035.0,67034.0,0.54290881]
[1729587768385,0.00360026,67035.0,67034.0,0.55394809]
[1729587768833,0.00360026,67035.0,67034.0,0.57161085]
[1729587769295,0.00360026,67035.0,67034.0,0.5937238]
[1729587769719,0.00160026,67035.0,67034.0,0.5937238]
[1729587771003,0.00160026,67035.0,67034.0,0.5927238]
[1729587771207,0.00160026,67035.0,67034.0,0.5947238]
[1729587772624,0.00160026,67035.0,67034.0,0.72529958]
[1729587773073,0.00160026,67035.0,67034.0,0.72329958]
[1729587775597,0.00160026,67035.0,67034.0,0.68358338]
[1729587775823,0.00160026,67035.0,67034.0,0.59496326]
[1729587777199,0.00160026,67035.0,67034.0,0.59296326]
[1729587777414,0.00260026,67035.0,67034.0,0.59796326]
[1729587777629,0.00260026,67035.0,67034.0,0.71181741]
[1729587777852,0.00260026,67035.0,67034.0,0.71081741]
[1729587778093,0.00160026,67035.0,67034.0,0.59296326]
[1729587778304,0.0075,67040.0,67035.0,0.164175]
[1729587778518,0.0075,67040.0,67035.0,0.49298613]
[1729587778741,0.0075,67040.0,67035.0,0.45349909]
[1729587779181,0.0075,67040.0,67035.0,0.50465155]
[1729587780749,0.002652,67036.0,67035.0,0.50965155]
[1729587780968,0.002652,67036.0,67035.0,0.51065155]
[1729587780969,0.003652,67036.0,67035.0,0.51065155]
[1729587781204,0.003652,67036.0,67035.0,0.73330423]
[1729587781442,0.003652,67036.0,67035.0,0.51071825]
[1729587782086,0.003652,67036.0,67035.0,1.21071825]
[1729587782320,0.003652,67036.0,67035.0,1.21271825]
[1729587782561,0.003652,67036.0,67035.0,1.24611945]
[1729587783301,0.001692,67041.0,67040.0,0.164164]
[1729587783529,0.001692,67041.0,67040.0,1.41488201]
[1729587783763,0.001692,67041.0,67040.0,1.42635908]
[1729587784204,0.001692,67041.0,67040.0,1.42835908]
[1729587784728,0.003692,67041.0,67040.0,1.45485908]
[1729587784952,0.003692,67041.0,67040.0,1.60381823]
[1729587785184,0.003692,67041.0,67040.0,1.62169224]
[1729587785408,0.003692,67041.0,67040.0,1.60387688]
[1729587786111,0.003692,67041.0,67040.0,1.60611495]
[1729587786389,0.00169,67048.0,67047.0,0.4774875]
[1729587786640,0.00169,67048.0,67047.0,1.41112566]
[1729587786881,0.00169,67048.0,67047.0,1.4455523]
[1729587787377,0.00169,67048.0,67047.0,1.5475523]
[1729587787808,0.00269,67048.0,67047.0,1.5505523]
[1729587788023,0.00269,67048.0,67047.0,1.69951145]
[1729587788309,0.00369,67048.0,67047.0,1.75286606]
[1729587788554,0.00269,67048.0,67047.0,1.74990563]
[1729587788782,0.00369,67048.0,67047.0,1.75290563]
[1729587789712,0.00269,67048.0,67047.0,1.74590563]
[1729587790189,0.00369,67048.0,67047.0,1.75790563]
[1729587792256,0.22265268,67062.0,67058.0,0.0125]
[1729587792480,0.22265268,67062.0,67058.0,0.49863903]
[1729587792756,0.00169,67064.0,67058.0,0.49863903]
[1729587792963,0.00169,67064.0,67058.0,0.51000585]
[1729587793174,0.00169,67064.0,67063.0,0.0125]
[1729587793389,0.00169,67064.0,67063.0,0.49862803]
[1729587793602,0.00169,67064.0,67063.0,0.65035846]
[1729587794285,0.00169,67064.0,67063.0,0.51361996]
[1729587794510,0.00169,67064.0,67063.0,0.51561996]
[1729587795668,0.00169,67064.0,67063.0,0.46430258]
[1729587795886,0.00169,67064.0,67063.0,0.51551976]
[1729587796106,0.00169,67064.0,67063.0,0.47543675]
[1729587796328,0.00169,67064.0,67063.0,0.49325142]
[1729587796581,0.00169,67064.0,67063.0,0.68851976]
[1729587797689,0.00169,67064.0,67063.0,0.68751976]
[1729587797920,0.00169,67064.0,67063.0,0.70951976]
[1729587798389,0.00269,67064.0,67063.0,0.85225826]
[1729587798614,0.00169,67064.0,67063.0,0.84625826]
[1729587798834,0.00369,67064.0,67063.0,0.86825826]
[1729587799055,0.00369,67064.0,67063.0,1.09091094]
[1729587799283,0.00369,67064.0,67063.0,0.86825826]
[1729587799508,0.00369,67064.0,67063.0,0.86825423]
[1729587799728,0.00269,67064.0,67063.0,0.96225423]
[1729587800636,0.00269,67064.0,67063.0,0.68304485]
[1729587800856,0.00369,67064.0,67063.0,0.69704485]
[1729587801375,0.00369,67064.0,67063.0,0.67404485]
[1729587801588,0.00369,67064.0,67063.0,0.57404485]
[1729587802030,0.00369,67064.0,67063.0,0.723004]
[1729587802256,0.00369,67064.0,67063.0,0.40104485]
[1729587802487,0.152801,67064.0,67063.0,0.03925955]
[1729587803152,0.2920395,67064.0,67063.0,0.03925955]
[1729587803374,0.2910395,67064.0,67063.0,0.014]
[1729587803595,0.2910395,67064.0,67050.0,0.154141]
[1729587803596,0.1409285,67064.0,67050.0,0.154141]
[1729587803809,0.14912,67060.0,67059.0,0.000825]
[1729587805418,0.002,67060.0,67059.0,0.000825]
[1729587805849,0.002,67060.0,67059.0,0.149947]
[1729587806088,0.002,67060.0,67059.0,0.20633604]
[1729587806319,0.002,67060.0,67059.0,0.36941576]
[1729587806538,0.002,67060.0,67059.0,0.36893365]
[1729587806755,0.00669,67064.0,67059.0,0.36893365]
[1729587806756,0.00169,67064.0,67063.0,0.149113]
[1729587806974,0.00169,67064.0,67063.0,0.1520949]
[1729587807196,0.00169,67064.0,67063.0,0.16339578]
[1729587807417,0.00169,67064.0,67063.0,0.2723721]
[1729587807667,0.00169,67064.0,67063.0,0.42084935]
[1729587807884,0.150801,67064.0,67063.0,0.02243934]
[1729587808109,0.150801,67064.0,67063.0,0.02543934]
[1729587808325,0.150801,67064.0,67063.0,0.02643934]
[1729587808538,0.150801,67064.0,67063.0,0.02343934]
[1729587808754,0.150801,67064.0,67063.0,0.01130088]
[1729587809236,0.149114,67063.0,67059.0,0.005825]
[1729587809461,0.149114,67063.0,67060.0,0.14895915]
[1729587809907,0.149119,67061.0,67059.0,0.005825]
[1729587810336,0.14912,67060.0,67059.0,0.000825]
[1729587811283,0.301729,67063.0,67059.0,0.000825]
[1729587811284,0.001,67063.0,67059.0,0.000825]
[1729587811512,0.149118,67061.0,67059.0,0.000825]
[1729587811734,0.002,67061.0,67059.0,0.149947]
[1729587811970,0.002,67061.0,67060.0,0.14912]
[1729587812618,0.002,67061.0,67059.0,0.000825]
[1729587812848,0.002,67061.0,67059.0,0.149947]
[1729587813060,0.151118,67061.0,67059.0,0.000825]
[1729587813507,0.149118,67061.0,67059.0,0.001825]
[1729587813725,0.00169,67064.0,67059.0,0.001825]
[1729587813946,0.002,67060.0,67059.0,0.000825]
[1729587814168,0.002,67060.0,67059.0,0.150947]
[1729587814380,0.002,67060.0,67059.0,0.001825]
[1729587814842,0.00169,67064.0,67059.0,0.000825]
[1729587815032,0.149114,67063.0,67059.0,0.149946]
[1729587815290,0.149118,67061.0,67059.0,0.000825]
[1729587815960,0.149119,67061.0,67059.0,0.000825]
[1729587816801,0.149119,67061.0,67059.0,0.001825]
[1729587816944,0.149119,67061.0,67059.0,0.002825]
[1729587817406,0.149118,67061.0,67060.0,0.01130184]
[1729587819915,0.00169,67064.0,67060.0,0.01230184]
[1729587820349,0.149117,67061.0,67060.0,0.01230184]
[1729587820567,0.149117,67061.0,67060.0,0.01130184]
[1729587820817,0.149117,67061.0,67060.0,0.01230184]
[1729587821259,0.149117,67061.0,67060.0,0.01130184]
[1729587821684,0.149117,67061.0,67060.0,0.01230184]
[1729587822846,0.2858555,67061.0,67060.0,0.01230184]
[1729587823065,0.3873555,67061.0,67060.0,0.01230184]
[1729587823290,0.250617,67061.0,67060.0,0.001]
[1729587824182,0.15412,67060.0,67059.0,0.000825]
[1729587825981,0.16212,67060.0,67059.0,0.001825]
[1729587826200,0.16812,67060.0,67059.0,0.002825]
[1729587826856,0.16212,67060.0,67059.0,0.001825]
[1729587827080,0.16812,67060.0,67059.0,0.002825]
[1729587829759,0.16312,67060.0,67059.0,0.002825]
[1729587830214,0.014,67060.0,67059.0,0.002825]
[1729587830456,0.16312,67060.0,67059.0,0.002825]
[1729587830673,0.16312,67060.0,67059.0,0.01419269]
[1729587830891,0.16312,67060.0,67059.0,0.002825]
[1729587831096,0.014,67060.0,67059.0,0.16333472]
[1729587831376,0.014,67060.0,67059.0,0.01420989]
[1729587832459,0.16312,67060.0,67059.0,0.01420989]
[1729587832900,0.16562,67060.0,67059.0,0.002825]
[1729587833329,0.24392,67060.0,67059.0,0.002825]
[1729587833548,0.34892,67060.0,67059.0,0.002825]
[1729587834668,0.3490269,67060.0,67059.0,0.002825]
[1729587835567,0.34884742,67060.0,67059.0,0.002825]
[1729587838154,0.35049742,67060.0,67059.0,0.002825]
[1729587839312,0.35593636,67060.0,67059.0,0.002825]
[1729587845220,0.40016766,67060.0,67059.0,0.002825]
[1729587845385,0.35593636,67060.0,67059.0,0.002825]
[1729587845785,0.42228331,67060.0,67059.0,0.002825]
[1729587846243,0.44439897,67060.0,67059.0,0.002825]
[1729587846654,0.35593636,67060.0,67059.0,0.002825]
[1729587847337,0.64163401,67060.0,67059.0,0.002825]
[1729587847559,0.8074459,67060.0,67059.0,0.002825]
[1729587847799,0.67663401,67060.0,67059.0,0.002825]
[1729587848457,0.67063401,67060.0,67059.0,0.001825]
[1729587848673,0.67063401,67060.0,67059.0,0.000825]
[1729587848674,0.66281349,67060.0,67059.0,0.000825]
[1729587848893,0.67281349,67060.0,67059.0,0.00171268]
[1729587849148,0.68681349,67060.0,67059.0,0.00271268]
[1729587849384,0.67481349,67060.0,67059.0,0.00171268]
[1729587849908,0.52007499,67060.0,67059.0,0.00271268]
[1729587855014,0.44177499,67060.0,67059.0,0.00271268]
[1729587855745,0.44177499,67060.0,67059.0,0.00257568]
[1729587855960,1.44177499,67060.0,67059.0,0.00257568]
[1729587856194,1.22669055,67060.0,67059.0,0.00257568]
[1729587856413,1.1748769,67060.0,67059.0,0.00257568]
[1729587857136,1.17493933,67060.0,67059.0,0.00257568]
[1729587857358,1.16093933,67060.0,67059.0,0.01403138]
[1729587857574,1.16093933,67060.0,67059.0,0.00157568]
[1729587857794,1.25893933,67060.0,67059.0,0.00057568]
[1729587858017,1.26593933,67060.0,67059.0,0.00157568]
[1729587858245,1.27693933,67060.0,67059.0,0.00157568]
[1729587858477,1.26993933,67060.0,67059.0,0.00057568]
[1729587858720,1.25093933,67060.0,67059.0,0.00057568]
[1729587858948,1.29975298,67060.0,67059.0,0.00057568]
[1729587859181,1.47586895,67060.0,67059.0,0.00057568]
[1729587859441,1.65690852,67060.0,67059.0,0.00057568]
[1729587859664,1.62253698,67060.0,67059.0,0.00057568]
[1729587859893,1.76045818,67060.0,67059.0,0.00057568]
[1729587860123,1.65553698,67060.0,67059.0,0.00057568]
[1729587860359,1.75693698,67060.0,67059.0,0.00057568]
[1729587860579,1.98996724,67060.0,67059.0,0.00057568]
[1729587860807,1.98593069,67060.0,67059.0,0.00057568]
[1729587861072,1.99693069,67060.0,67059.0,0.00057568]
[1729587861824,2.00893069,67060.0,67059.0,0.00057568]
[1729587862329,2.01793069,67060.0,67059.0,0.00157568]
[1729587862787,2.01593069,67060.0,67059.0,0.00157568]
[1729587863004,2.01793069,67060.0,67059.0,0.00157568]
[1729587863695,2.01593069,67060.0,67059.0,0.00157568]
[1729587863912,2.00693069,67060.0,67059.0,0.00057568]
[1729587864609,1.67139219,67060.0,67059.0,0.00057568]
[1729587864848,1.29743933,67060.0,67059.0,0.00157568]
[1729587865074,1.40823891,67060.0,67059.0,0.00157568]
[1729587865521,1.40825201,67060.0,67059.0,0.00157568]
[1729587865746,1.39425201,67060.0,67059.0,0.00057568]
[1729587865969,1.40525201,67060.0,67059.0,0.00157568]
[1729587866835,1.38025201,67060.0,67059.0,0.00157568]
[1729587867049,1.26943933,67060.0,67059.0,0.00157568]
[1729587867286,1.38027303,67060.0,67059.0,0.00057568]
[1729587867513,1.26943933,67060.0,67059.0,0.00057568]
[1729587867734,1.36712424,67060.0,67059.0,0.00157568]
[1729587868410,1.33746957,67060.0,67059.0,0.00157568]
[1729587868643,1.27093933,67060.0,67059.0,0.00157568]
[1729587869965,1.31529407,67060.0,67059.0,0.00157568]
[1729587870850,1.27093933,67060.0,67059.0,0.00157568]
[1729587871302,1.33746957,67060.0,67059.0,0.00157568]
[1729587871517,1.31529734,67060.0,67059.0,0.00157568]
[1729587871733,1.31529731,67060.0,67059.0,0.00157568]
[1729587872612,1.31519041,67060.0,67059.0,0.00157568]
[1729587873289,1.32905455,67060.0,67059.0,0.00157568]
[1729587874203,1.29219657,67060.0,67059.0,0.00157568]
[1729587874422,1.27833243,67060.0,67059.0,0.00157568]
[1729587874638,1.34487127,67060.0,67059.0,0.00157568]
[1729587874889,1.3587341,67060.0,67059.0,0.00157568]
[1729587875106,1.32269314,67060.0,67059.0,0.00157568]
[1729587875324,1.3365568,67060.0,67059.0,0.00157568]
[1729587875544,1.32269314,67060.0,67059.0,0.00157568]
[1729587875766,1.34487127,67060.0,67059.0,0.00157568]
[1729587875986,1.36703941,67060.0,67059.0,0.00157568]
[1729587876418,1.27833243,67060.0,67059.0,0.00157568]
[1729587877988,1.57103008,67060.0,67059.0,0.00157568]
[1729587878226,1.70283008,67060.0,67059.0,0.00157568]
[1729587878444,2.00968646,67060.0,67059.0,0.00157568]
[1729587878667,2.00968646,67060.0,67045.0,0.22265268]
[1729587878668,0.256651,67046.0,67045.0,0.22265268]
[1729587878908,0.65328545,67046.0,67045.0,0.22265268]
[1729587879125,0.54434865,67046.0,67045.0,0.01041777]
[1729587879338,0.149169,67038.0,67037.0,0.22265268]
[1729587879556,0.21573083,67038.0,67037.0,0.22265268]
[1729587879778,0.21579326,67038.0,67037.0,0.23310641]
[1729587879992,0.14918,67033.0,67032.0,0.1768]
[1729587880697,0.14918,67033.0,67032.0,0.17673757]
[1729587882695,0.15118,67033.0,67032.0,0.17673757]
[1729587883152,0.002,67033.0,67032.0,0.17673757]
[1729587883390,0.002,67033.0,67032.0,0.32591957]
[1729587884043,0.149173,67036.0,67032.0,0.32591957]
[1729587884289,0.300845,67037.0,67032.0,0.17673757]
[1729587884876,0.002,67033.0,67032.0,0.32591957]
[1729587885078,0.00021484,67033.0,67032.0,0.32691957]
[1729587885271,0.00021484,67033.0,67032.0,0.17773757]
[1729587886463,0.149176,67035.0,67032.0,0.17773757]
[1729587886893,0.149176,67035.0,67032.0,0.17673757]
[1729587887521,0.001,67033.0,67032.0,0.17673757]
[1729587887735,0.149176,67035.0,67032.0,0.17673757]
[1729587887976,0.447516,67037.0,67032.0,0.32591857]
[1729587888245,0.004,67035.0,67034.0,0.149178]
[1729587888888,0.003,67035.0,67034.0,0.149178]
[1729587889337,0.003,67035.0,67033.0,0.29836]
[1729587889338,0.149165,67040.0,67035.0,0.149175]
[1729587889786,0.298318,67043.0,67033.0,0.52101268]
[1729587889992,0.298318,67043.0,67033.0,0.65775118]
[1729587890205,0.003,67037.0,67035.0,0.298351]
[1729587890429,0.003,67037.0,67036.0,0.149173]
[1729587890642,0.0075,67043.0,67035.0,0.298351]
[1729587890868,0.14916,67042.0,67038.0,0.149168]
[1729587891338,0.298324,67041.0,67032.0,0.32569672]
[1729587891558,0.14918,67033.0,67032.0,0.17673757]
[1729587892228,0.14918,67033.0,67032.0,0.18726812]
[1729587893111,0.149178,67034.0,67032.0,0.18726812]
[1729587893321,0.298348,67036.0,67032.0,0.18926812]
[1729587893541,0.001,67033.0,67032.0,0.18926812]
[1729587893970,0.002,67033.0,67032.0,0.18726812]
[1729587894183,0.001,67033.0,67032.0,0.18726812]
[1729587895123,0.001,67033.0,67032.0,0.18926812]
[1729587896429,0.149178,67034.0,67032.0,0.18726812]
[1729587896869,0.447522,67036.0,67032.0,0.18926812]
[1729587897077,0.149171,67037.0,67032.0,0.18926812]
[1729587897292,0.298342,67037.0,67032.0,0.18826812]
[1729587897508,0.149175,67036.0,67032.0,0.18726812]
[1729587897712,0.149175,67036.0,67032.0,0.18926812]
[1729587898188,0.0025,67040.0,67033.0,0.1367385]
[1729587898371,0.0075,67043.0,67033.0,0.1367385]
[1729587898579,0.001,67037.0,67033.0,0.29643169]
[1729587898786,0.001,67037.0,67034.0,0.149177]
[1729587898993,0.001,67037.0,67034.0,0.01050969]
[1729587899203,0.001,67037.0,67032.0,0.17673757]
[1729587899411,0.001,67037.0,67032.0,0.32569672]
[1729587899620,0.150172,67037.0,67035.0,0.0105052]
[1729587899828,0.149172,67037.0,67032.0,0.32569672]
[1729587900039,0.149172,67037.0,67036.0,0.01049592]
[1729587900255,0.298335,67039.0,67032.0,0.17673757]
[1729587900473,0.447513,67037.0,67036.0,0.01049592]
[1729587900726,0.002,67036.0,67032.0,0.17673757]
[1729587901154,0.149175,67035.0,67033.0,0.01050941]
[1729587901600,0.298342,67037.0,67033.0,0.01050941]
[1729587901601,0.149172,67037.0,67033.0,0.01050941]
[1729587901838,0.447513,67037.0,67033.0,0.01050941]
[1729587902088,0.149174,67036.0,67033.0,0.01050941]
[1729587902305,0.298331,67040.0,67033.0,0.01050941]
[1729587902528,0.0025,67038.0,67033.0,0.01050941]
[1729587902742,0.298331,67040.0,67033.0,0.01050941]
[1729587902743,0.149174,67036.0,67033.0,0.01050941]
[1729587902970,0.298331,67040.0,67033.0,0.23316209]
[1729587903189,0.149166,67040.0,67033.0,0.01050941]
[1729587903433,0.149168,67039.0,67033.0,0.01050941]
[1729587903873,0.0075,67041.0,67033.0,0.01050941]
[1729587904087,0.001,67035.0,67033.0,0.01250941]
[1729587904716,0.005,67041.0,67033.0,0.01050941]
[1729587904930,0.150168,67039.0,67033.0,0.01150941]
[1729587905144,0.150168,67039.0,67038.0,0.3664075]
[1729587905145,0.001,67039.0,67038.0,0.3664075]
[1729587905364,0.300804,67046.0,67038.0,0.2172385]
[1729587905581,0.300804,67046.0,67038.0,0.2277531]
[1729587905582,0.149154,67045.0,67038.0,0.2277531]
[1729587905792,0.149154,67045.0,67038.0,0.3769211]
[1729587906443,0.14915,67047.0,67039.0,0.149166]
[1729587906660,0.14915,67047.0,67040.0,0.149163]
[1729587906874,0.14915,67047.0,67040.0,0.01050561]
[1729587906875,0.447449,67047.0,67040.0,0.01050561]
[1729587907114,0.149146,67048.0,67041.0,0.149161]
[1729587907322,0.149149,67047.0,67041.0,0.149161]
[1729587907545,0.149149,67047.0,67042.0,0.01049662]
[1729587907978,0.149149,67047.0,67040.0,0.15214699]
[1729587907979,0.158149,67047.0,67040.0,0.15214699]
[1729587908191,0.149152,67046.0,67043.0,0.01049212]
[1729587908426,0.018,67047.0,67043.0,0.01049212]
[1729587908642,0.025,67047.0,67040.0,0.15214599]
[1729587908879,0.156149,67047.0,67044.0,0.10118763]
[1729587909080,0.156149,67047.0,67044.0,0.0907]
[1729587909289,0.0025,67049.0,67045.0,0.01048313]
[1729587909503,0.149151,67046.0,67045.0,0.01048313]
[1729587909775,0.0025,67046.0,67038.0,0.0805]
[1729587909983,0.005,67051.0,67038.0,0.22265268]
[1729587909984,0.149166,67039.0,67038.0,0.22265268]
[1729587910429,0.298329,67040.0,67037.0,0.005]
[1729587910655,0.20807032,67054.0,67028.0,0.0832]
[1729587910656,0.14918,67033.0,67028.0,0.0832]
[1729587910871,0.14918,67033.0,67031.0,0.22265268]
[1729587911302,0.14918,67033.0,67028.0,0.0832]
[1729587911542,0.15168,67033.0,67021.0,0.0777]
[1729587911767,0.15168,67033.0,67022.0,0.23383668]
[1729587911994,0.23488,67033.0,67032.0,0.002825]
[1729587912214,0.49483915,67033.0,67032.0,0.002825]
[1729587912434,0.51783915,67033.0,67032.0,0.002825]
[1729587912651,0.51883915,67033.0,67032.0,0.004825]
[1729587913097,0.61483915,67033.0,67032.0,0.002825]
[1729587913318,0.61483915,67033.0,67023.0,0.22265268]
[1729587913319,0.2512,67024.0,67023.0,0.22265268]
[1729587913590,0.88933615,67024.0,67023.0,0.22265268]
[1729587914017,0.261718,67016.0,67015.0,0.22265268]
[1729587914230,0.54741565,67016.0,67015.0,0.22265268]
[1729587914455,0.25422,67015.0,67014.0,0.000825]
[1729587914683,0.49922456,67015.0,67014.0,0.000825]
[1729587915121,0.52136091,67015.0,67014.0,0.000825]
[1729587915348,0.43367915,67015.0,67014.0,0.000825]
[1729587916031,0.51037915,67015.0,67014.0,0.000825]
[1729587916277,0.51437915,67015.0,67014.0,0.000825]
[1729587916519,0.51637915,67015.0,67014.0,0.000825]
[1729587916754,0.56619564,67015.0,67014.0,0.000825]
[1729587916974,0.57819564,67015.0,67014.0,0.000825]
[1729587917457,0.52637915,67015.0,67014.0,0.000825]
[1729587917686,0.53637915,67015.0,67014.0,0.000825]
[1729587918124,0.67074567,67015.0,67014.0,0.000825]
[1729587918594,0.6386318,67015.0,67014.0,0.000825]
[1729587918807,0.56237915,67015.0,67014.0,0.000825]
[1729587919479,0.54837915,67015.0,67014.0,0.000825]
[1729587919704,0.56437915,67015.0,67014.0,0.000825]
[1729587919976,0.53437915,67015.0,67014.0,0.000825]
[1729587920194,0.57849757,67015.0,67014.0,0.000825]
[1729587920647,0.53437915,67015.0,67014.0,0.000825]
[1729587920912,0.54837915,67015.0,67014.0,0.000825]
[1729587921136,0.53437915,67015.0,67014.0,0.000825]
[1729587921605,0.52037915,67015.0,67014.0,0.000825]
[1729587921874,0.53437915,67015.0,67014.0,0.000825]
[1729587922382,0.53637915,67015.0,67014.0,0.000825]
[1729587922603,0.6154663,67015.0,67014.0,0.000825]
[1729587922828,0.58964981,67015.0,67014.0,0.000825]
[1729587923060,0.59516116,67015.0,67014.0,0.000825]
[1729587923295,0.58116116,67015.0,67014.0,0.000825]
[1729587924895,0.59516116,67015.0,67014.0,0.000825]
[1729587925327,0.58116116,67015.0,67014.0,0.000825]
[1729587925753,0.59516116,67015.0,67014.0,0.000825]
[1729587926431,0.59516116,67015.0,67014.0,1e-06]
[1729587927941,0.59516116,67015.0,66996.0,0.22265268]
[1729587927942,0.4004805,67005.0,66996.0,0.22265268]
[1729587928164,0.54743965,67005.0,66996.0,0.22265268]
[1729587928372,0.54743965,67005.0,67004.0,0.23362133]
[1729587928585,0.256758,66998.0,66996.0,0.22265268]
[1729587928803,0.3934965,66998.0,66996.0,0.22265268]
[1729587929055,0.3934965,66998.0,66997.0,0.01182515]
[1729587929277,0.3934965,66998.0,66997.0,0.000825]
[1729587930359,0.55245565,66998.0,66997.0,0.000825]
[1729587931641,0.56045565,66998.0,66997.0,0.000825]
[1729587932073,0.55245565,66998.0,66997.0,0.000825]
[1729587932507,0.43371715,66998.0,66997.0,0.000825]
[1729587932741,0.42371715,66998.0,66997.0,0.000825]
[1729587933006,0.42471715,66998.0,66997.0,0.000825]
[1729587933226,0.42371715,66998.0,66997.0,0.000825]
[1729587933645,0.43771715,66998.0,66997.0,0.000825]
[1729587933861,0.42371715,66998.0,66997.0,0.000825]
[1729587934292,0.43771715,66998.0,66997.0,0.000825]
[1729587934701,0.42471715,66998.0,66997.0,0.000825]
[1729587935151,0.43871715,66998.0,66997.0,0.000825]
[1729587935835,0.57545565,66998.0,66997.0,0.000825]
[1729587936273,0.43371715,66998.0,66997.0,0.000825]
[1729587936483,0.57045565,66998.0,66997.0,0.000825]
[1729587937377,0.284758,66998.0,66997.0,0.084025]
[1729587937587,0.270758,66998.0,66997.0,0.084025]
[1729587937803,0.41971715,66998.0,66997.0,0.000825]
[1729587938221,0.43171715,66998.0,66997.0,0.000825]
[1729587938663,0.41971715,66998.0,66997.0,0.000825]
[1729587939078,0.40571715,66998.0,66997.0,0.000825]
[1729587939316,0.41571715,66998.0,66997.0,0.000825]
[1729587939580,0.42771715,66998.0,66997.0,0.000825]
[1729587939804,0.40571715,66998.0,66997.0,0.000825]
[1729587940054,0.270758,66998.0,66997.0,0.000825]
[1729587941038,0.282758,66998.0,66997.0,0.000825]
[1729587941449,0.270758,66998.0,66997.0,0.000825]
[1729587941851,0.280758,66998.0,66997.0,0.000825]
[1729587942059,0.266758,66998.0,66997.0,0.000825]
[1729587942280,0.256758,66998.0,66997.0,0.000825]
[1729587942480,0.268758,66998.0,66997.0,0.000825]
[1729587942677,0.277758,66998.0,66997.0,0.000825]
[1729587943690,0.288758,66998.0,66997.0,0.000825]
[1729587945469,0.279758,66998.0,66997.0,0.000825]
[1729587945690,0.256758,66998.0,66997.0,0.000825]
[1729587945926,0.274758,66998.0,66997.0,0.000825]
[1729587948753,0.274758,66998.0,66997.0,0.01202663]
[1729587949391,0.274758,66998.0,66997.0,0.000825]
[1729587949609,0.42371715,66998.0,66997.0,0.000825]
[1729587953438,0.42871715,66998.0,66997.0,0.000825]
[1729587954712,0.256778,66989.0,66988.0,0.21932168]
[1729587954944,0.3935165,66989.0,66988.0,0.21932168]
[1729587955159,0.1,66988.0,66983.0,0.091]
[1729587955383,0.149289,66984.0,66983.0,0.091]
[1729587955594,0.149289,66984.0,66983.0,0.10219998]
[1729587956010,0.151789,66984.0,66983.0,0.12011975]
[1729587956232,0.149289,66984.0,66983.0,0.16257699]
[1729587956442,0.149289,66984.0,66983.0,0.12011975]
[1729587956661,0.149289,66984.0,66983.0,0.12211975]
[1729587957313,0.151789,66984.0,66983.0,0.12211975]
[1729587957955,0.152789,66984.0,66983.0,0.12311975]
[1729587958630,0.152789,66984.0,66983.0,0.10519998]
[1729587958870,0.152789,66984.0,66983.0,0.094]
[1729587959083,0.152789,66984.0,66983.0,0.1051993]
[1729587960909,0.152789,66984.0,66983.0,0.094]
[1729587961147,0.152789,66984.0,66983.0,0.01419912]
[1729587961381,0.4784748,66984.0,66983.0,0.003]
[1729587961612,0.68522515,66984.0,66983.0,0.003]
[1729587961843,0.54848665,66984.0,66983.0,0.003]
[1729587962064,0.70822515,66984.0,66983.0,0.003]
[1729587962539,0.3985405,66978.0,66977.0,0.008344]
[1729587962768,0.54949965,66978.0,66977.0,0.008344]
[1729587963236,0.61177031,66978.0,66977.0,1e-06]
[1729587963465,0.65449965,66978.0,66977.0,1e-06]
[1729587963686,0.80434347,66978.0,66977.0,1e-06]
[1729587964116,0.79934347,66978.0,66977.0,1e-06]
[1729587964345,0.65949965,66978.0,66977.0,1e-06]
[1729587964786,0.65949965,66978.0,66969.0,0.22265268]
[1729587964787,0.4235585,66970.0,66969.0,0.22265268]
[1729587965004,0.57251765,66970.0,66969.0,0.22265268]
[1729587965259,0.57251765,66970.0,66969.0,0.01306368]
[1729587965695,0.286822,66969.0,66968.0,0.000844]
[1729587965929,0.67274651,66969.0,66968.0,0.000844]
[1729587966142,0.71376289,66969.0,66968.0,0.000844]
[1729587966362,0.53968115,66969.0,66968.0,0.000844]
[1729587966604,0.58051965,66969.0,66968.0,0.000844]
[1729587966811,0.69123051,66969.0,66968.0,0.000844]
[1729587967033,0.58051965,66969.0,66968.0,0.000844]
[1729587967265,0.59451965,66969.0,66968.0,0.000844]
[1729587967480,0.68302804,66969.0,66968.0,0.000844]
[1729587967685,0.68302847,66969.0,66968.0,0.000844]
[1729587967943,0.59451965,66969.0,66968.0,0.000844]
[1729587968175,0.68302946,66969.0,66968.0,0.000844]
[1729587968399,0.64687659,66969.0,66968.0,0.000844]
[1729587968610,0.66087659,66969.0,66968.0,0.000844]
[1729587968828,0.67487659,66969.0,66968.0,0.000844]
[1729587969012,0.67687659,66969.0,66968.0,0.000844]
[1729587969245,0.68302946,66969.0,66968.0,0.000844]
[1729587969504,0.59451965,66969.0,66968.0,0.000844]
[1729587969751,0.69695025,66969.0,66968.0,0.000844]
[1729587969985,0.59451965,66969.0,66968.0,0.000844]
[1729587970218,0.64684186,66969.0,66968.0,0.000844]
[1729587970481,0.59996837,66969.0,66968.0,0.000844]
[1729587970957,0.58596837,66969.0,66968.0,0.000844]
[1729587971187,0.60196837,66969.0,66968.0,0.000844]
[1729587971430,0.66825023,66969.0,66968.0,0.000844]
[1729587971666,0.70937026,66969.0,66968.0,0.000844]
[1729587971899,0.69337026,66969.0,66968.0,0.000844]